Cogmind - Beta 13 X1 @@@ ROGUE MODE // 2023.10.05 @ 19:29:34 Player: LU-1G1 Result: Destroyed by QA-1AR(R) with Subdweller Shrapnel Launcher Performance ------------- Evolutions (0) 0 Regions Visited (2) 400 Robots Destroyed (22) 110 Value Destroyed (507) 507 Prototype IDs (0) 0 Alien Tech Used (0) 0 Bonus (0) 0 TOTAL SCORE: 1017 Bonus ------- None Cogmind --------- Core Integrity 0/250 Matter 298/300 Energy 160/160 System Corruption 0% Temperature Cool (0) Movement Treading (240) Ox1 Location -10/Subcaves Parts ------- > --- POWER (1) -------- Light Nuclear Core > --- PROPULSION (2) --- Light Treads Light Treads > --- UTILITY (2) ------ Cooling System High-capacity Storage Unit > --- WEAPON (2) ------- Subdweller Machine Gun > --- INVENTORY (20) --- Light Ion Engine Wheel Wheel Cooling System Cooling System Structural Scanner Light Armor Plating Scrap Shield Small Laser Light EM Pulse Cannon Light EM Pulse Cannon Light EM Pulse Cannon Light EM Pulse Cannon Light EM Pulse Cannon Light EM Pulse Cannon Light Assault Rifle Light Assault Rifle Mini Grenade Launcher Mini Grenade Launcher Peak State ------------ > --- POWER ------------ Light Nuclear Core > --- PROPULSION ------- Light Treads Light Treads > --- UTILITY ---------- Cooling System High-capacity Storage Unit > --- WEAPON ----------- Subdweller Machine Gun Subdweller Machine Gun > --- INVENTORY -------- Light Ion Engine Wheel Wheel Cooling System Cooling System Structural Scanner Scrap Shield Small Laser Light EM Pulse Cannon Light EM Pulse Cannon Light EM Pulse Cannon Light EM Pulse Cannon Light EM Pulse Cannon Light EM Pulse Cannon Light Assault Rifle Light Assault Rifle Mini Grenade Launcher Mini Grenade Launcher [Rating: 15] Favorites ----------- Power Light Nuclear Core Engine Ion Engine Power Core Light Nuclear Core Propulsion Light Treads Treads Light Treads Wheel Wheel Utility High-capacity Storage Unit Device Cooling System Storage High-capacity Storage Unit Weapon Light Assault Rifle Energy Gun Medium Laser Ballistic Gun Light Assault Rifle Launcher Grenade Launcher Build | -11 -10 -10 ------- Run | Jun Mat Sub Slots Evolved . | . . . Power . | . . . Propulsion . | . . . Utility . | . . . Weapon . | . . . Parts Attached 21 | 7 11 3 Power 3 | 1 2 . Engine 2 | 1 1 . Core 1 | . 1 . Reactor . | . . . Propulsion 7 | 2 5 . Treads 6 | 2 4 . Leg . | . . . Wheel 1 | . 1 . Hover . | . . . Flight . | . . . Utility 4 | 2 2 . Device 2 | 1 1 . Storage 2 | 1 1 . Processor . | . . . Hackware . | . . . Protection . | . . . Artifact . | . . . Weapon 7 | 2 2 3 Energy Gun 1 | 1 . . Energy Cannon . | . . . Ballistic Gun 5 | 1 2 2 Ballistic Cannon . | . . . Launcher 1 | . . 1 Special Weapon . | . . . Impact Weapon . | . . . Slashing Weapon . | . . . Piercing Weapon . | . . . Special Melee Weapon . | . . . Unidentified Prototypes . | . . . Parts Lost 8 | . 6 2 Power 1 | . 1 . Propulsion 2 | . 2 . Utility 1 | . 1 . Weapon 4 | . 2 2 Highest Loss Streak 5 | . 5 1 To Critical Strikes . | . . . Average Slot Usage (%) 97 | . 96 98 Engine 6 | . 12 . Core 7 | . . 14 Treads 27 | . 27 28 Device 13 | . 12 14 Storage 14 | . 14 14 Energy Gun 4 | . 8 . Ballistic Gun 19 | . 19 20 Launcher 3 | . . 6 Naked Turns . | . . . Heaviest Build 55 | 14 49 55 Greatest Support 40 | 40 40 40 Greatest Overweight (x) 4 | . 4 1 Average Overweight (x) . | . . 1 Largest Inventory Capacity 20 | 8 20 20 Average Capacity 17 | 7 16 20 Most Carried 20 | 6 16 20 Average Carried 13 | 4 10 17 Final Capacity 20 | 8 20 20 Final Carried 20 | 6 16 20 Class Distribution -------------------- 74% | Mutant 20% | Subdweller-Mutant 5% | Scavenger-Mutant Dominant Class ---------------- Mutant | -10/Materials Mutant | -10/Subcaves Resources | -11 -10 -10 ----------- Run | Jun Mat Sub Matter Collected 616 | 279 120 217 Remotely . | . . . Salvage Created 845 | 136 444 265 Parts 54 | 6 30 18 Haulers Intercepted 2 | . 2 . Recyclers Shooed 1 | . 1 . Parts Field Recycled . | . . . Retrieved Matter . | . . . Parts Self-Destructed 1 | . . 1 Prevented . | . . . Kills | -11 -10 -10 ------- Run | Jun Mat Sub Combat Hostiles Destroyed 14 | . 9 5 Guns 11 | . 9 2 AOE 3 | . . 3 Classes Destroyed 9 | 2 5 2 Worker 2 | . 2 . Tunneler 2 | 2 . . Hauler 2 | . 2 . Recycler 1 | 1 . . Watcher 1 | . 1 . Swarmer 3 | . 3 . Grunt 6 | . 6 . Sentry 1 | . . 1 Subdweller 4 | . . 4 Best Kill Streak 4 | 3 4 2 Combat Bots Only 4 | . 4 2 Max Kills in Single Turn 1 | 1 1 1 Gunslinging . | . . . Exploded 1 | . . 1 Melee . | . . . Uniques/NPCs Destroyed . | . . . Combat | -11 -10 -10 -------- Run | Jun Mat Sub Damage Taken 1307 | . 667 640 Core 265 | . 63 202 Absorbed by Shields . | . . . Regen/Repaired (Parts) 94 | . 94 . Core Remaining (%) 100 | 100 . . Volleys Fired 91 | 9 49 33 Largest 2 | 2 2 2 Hottest 70 | 70 70 60 Shots Fired 159 | 18 96 45 Gun 147 | 18 96 33 Cannon . | . . . Launcher 12 | . . 12 Special . | . . . Kinetic 100 | 9 58 33 Thermal 47 | 9 38 . Explosive 12 | . . 12 Electromagnetic . | . . . Robot Hit Streak 11 | 3 8 11 Robot Miss Streak 4 | 2 4 2 Penetration Max . | . . . Secondary Targets 2 | . 2 . Max Gunslinging Chain 1 | . 1 . Shots Hit Robots 99 | 10 62 27 Core Hits 45 | 4 28 13 Critical Kills 1 | . 1 . Critical Parts Destroyed 1 | . 1 . Critical Strikes 6 | . 6 . Burn 4 | . 4 . Destroy 2 | . 2 . Melee Attacks . | . . . Impact . | . . . Slashing . | . . . Piercing . | . . . Sneak Attacks . | . . . Combat Hostiles . | . . . Follow-up Attacks . | . . . Damage Inflicted 1700 | 114 670 916 Guns 1212 | 114 661 437 Cannons . | . . . Explosions 479 | . . 479 Melee . | . . . Ramming 9 | . 9 . Kinetic 800 | 51 312 437 Thermal 412 | 63 349 . Explosive 479 | . . 479 Electromagnetic . | . . . Impact . | . . . Slashing . | . . . Piercing . | . . . Highest Corruption . | . . . Average Corruption . | . . . Corruption Purged . | . . . Corruption Blocked . | . . . Overload Shots . | . . . Overflow Damage 10 | . . 10 Projectiles . | . . . Explosions 10 | . . 10 Melee . | . . . Knockbacks . | . . . Impact . | . . . Kinetic . | . . . Secondary . | . . . Self-Inflicted Damage 162 | . . 162 Shots 9 | . . 9 Rammed 1 | . 1 . Targets Rammed 1 | . 1 . Kicked . | . . . Crushed . | . . . Highest Temperature 347 | 100 347 . Average Temperature 85 | 42 94 . Received Heat Transfer 339 | . 315 24 Effects 1 | . 1 . Energy Bleed 1 | . 1 . Siege Activations . | . . . Robots Corrupted . | . . . Combat Hostiles . | . . . Parts Fried . | . . . Impact Corruptions . | . . . Robots Melted . | . . . Combat Hostiles . | . . . Parts Melted 3 | . 3 . Heat Transferred 1517 | 185 1332 . Parts Sabotaged . | . . . Parts Stolen . | . . . Parts Stripped . | . . . Power Chain Reactions . | . . . Missiles Intercepted . | . . . Alert | -11 -10 -10 ------- Run | Jun Mat Sub Peak Influence 147 | 15 147 . Initial 9 | . 9 . Average 50 | 3 56 . Maximum Alert Level . | . . . Low Security (%) 100 | 100 100 . Level 1 . | . . . Level 2 . | . . . Level 3 . | . . . Level 4 . | . . . Level 5 . | . . . High Security . | . . . Max Security . | . . . Squads Dispatched 1 | . 1 . Investigation . | . . . Extermination . | . . . Reinforcement 1 | . 1 . Assault . | . . . Garrison . | . . . Intercept . | . . . Searches Triggered . | . . . Construction Impeded . | . . . Haulers Reinforced . | . . . Active Scanning Responses . | . . . Cargo Convoy Interrupts . | . . . Stealth | -11 -10 -10 --------- Run | Jun Mat Sub Distress Signals 1 | . 1 . Communications Jammed . | . . . Distress Signals . | . . . Times Spotted 25 | . 18 7 Peak Tracking Total 6 | . 6 2 Tactical Retreats . | . . . Traps | -11 -10 -10 ------- Run | Jun Mat Sub Traps Triggered . | . . . Indirectly . | . . . Trap Hack Attempts . | . . . Triggered . | . . . Disarmed . | . . . Reprogrammed . | . . . Reused . | . . . Traps Extracted . | . . . Installed . | . . . Triggered . | . . . Machines | -11 -10 -10 ---------- Run | Jun Mat Sub Machines Disabled . | . . . Max in Single Turn . | . . . Machines Repaired . | . . . Machines Sabotaged . | . . . Overloaded Fab Kills . | . . . Hacking | -11 -10 -10 --------- Run | Jun Mat Sub Machines Accessed 4 | . 4 . Terminals 2 | . 2 . Fabricators . | . . . Repair Stations 1 | . 1 . Recycling Units 1 | . 1 . Scanalyzers . | . . . Garrison Access . | . . . Total Hacks 16 | . 16 . Successful 10 | . 10 . Failed 5 | . 5 . Catastrophic . | . . . Database Lockouts 1 | . 1 . Manual 2 | . 2 . Terminals 11 | . 11 . Fabricators . | . . . Repair Stations 4 | . 4 . Recycling Units 1 | . 1 . Scanalyzers . | . . . Garrison Access . | . . . Terminal Hacks 7 | . 7 . Robot Analysis 1 | . 1 . Terminal Index 1 | . 1 . Alert Level 1 | . 1 . Locate Traps 2 | . 2 . Maintenance Status 1 | . 1 . Zone Layout 1 | . 1 . Fabricator Hacks . | . . . Repair Station Hacks 2 | . 2 . Scan Component 1 | . 1 . Repair 1 | . 1 . Recycling Unit Hacks 1 | . 1 . Retrieve Components 1 | . 1 . Scanalyzer . | . . . Garrison Access Hacks . | . . . Unauthorized Hacks . | . . . Terminals . | . . . Fabricators . | . . . Repair Stations . | . . . Recycling Units . | . . . Scanalyzers . | . . . Garrison Access . | . . . Data Cores Recovered . | . . . Used . | . . . Hacking Detections 3 | . 3 . Full Trace Events 1 | . 1 . Feedback Events . | . . . Feedback Blocked . | . . . Robot Schematics Acquired . | . . . Robots Built . | . . . Authchips . | . . . Time . | . . . Total Robot Build Rating . | . . . Part Schematics Acquired . | . . . Parts Built . | . . . Authchips . | . . . Time . | . . . Total Part Build Rating . | . . . Parts Repaired 1 | . 1 . Time 26 | . 26 . Parts Recycled . | . . . Recycled Matter . | . . . Retrieved Matter . | . . . Retrieved Components 9 | . 9 . Parts Scanalyzed . | . . . Part Schematics Acquired . | . . . Parts Damaged . | . . . Bothacking | -11 -10 -10 ------------ Run | Jun Mat Sub Used RIF Installer . | . . . Robots Hacked . | . . . Non-combat . | . . . Combat . | . . . Robot Hacks Applied . | . . . Relay Couplers Released . | . . . Fabnet Peak Effective % . | . . . Robots Rewired . | . . . Allies Hacked . | . . . Hacks Repelled . | . . . Allies | -11 -10 -10 -------- Run | Jun Mat Sub Total Allies . | . . . Largest Group . | . . . Highest-Rated Group . | . . . Highest-Rated Ally . | . . . Total Orders . | . . . Ally Attacks . | . . . Total Damage . | . . . Kills . | . . . Allies Corrupted . | . . . Allies Melted . | . . . Intel | -11 -10 -10 ------- Run | Jun Mat Sub Robot Analysis Total 1 | . 1 . Derelict Logs Recovered 2 | . . 2 Drone Launches . | . . . Drone Recoveries . | . . . Exploration | -11 -10 -10 ------------- Run | Jun Mat Sub Turns Passed 2242 | 134 1021 1087 Spaces Moved 865 | 60 390 415 Core 2 | 2 . . Treads 856 | 58 383 415 Legs . | . . . Wheels 7 | . 7 . Hover . | . . . Flight . | . . . Fastest Speed 50 | 50 140 240 Average Speed 219 | 156 208 240 Slowest Speed 320 | 160 320 240 Overloaded Moves . | . . . Propulsion Burnouts . | . . . Robots Hopped . | . . . Cave-ins Triggered . | . . . Exploration Rate (%) 31 | 5 63 25 Regions Visited 2 Branch Regions 1 Pre-discovered Areas . | . . . Known Exits Taken . | . . . Unknown Exits Taken 2 | 1 1 . Scrap Searched . | . . . Spaces Dug . | . . . Terrain Destroyed 58 | . . 58 Melee . | . . . Projectile . | . . . AOE 58 | . . 58 Terrain Rammed . | . . . Walls Destroyed . | . . . Machines Disabled . | . . . Actions | -11 -10 -10 --------- Run | Jun Mat Sub Total 1055 | 81 513 461 Wait 47 | . 40 7 Move 863 | 59 389 415 Hop . | . . . Pick Up 25 | 6 16 3 Fast Attach 13 | 7 6 . Attach 3 | . 2 1 Detach 1 | . 1 . Swap 5 | . 3 2 Drop 6 | . 6 . Fire 91 | 9 49 33 Melee . | . . . Ram . | . . . Kick . | . . . Crush 1 | . 1 . Escape Stasis . | . . . Rewire . | . . . Trap . | . . . Miscellaneous . | . . . Route ------- -11/Junkyard -10/Materials (discovered 4 exits: [*Mat] / [*Min x2] / [*Sub]) -10/Subcaves History --------- Turn | Location | Event 16 | -11/Junkyard | Discovered new exit (range 15) 135 | -11/Junkyard | Entered Materials 303 | -10/Materials | Build established: Mutant 346 | -10/Materials | Discovered new exit (range 16) 405 | -10/Materials | Discovered new exit (range 5) 550 | -10/Materials | Central database locked down 690 | -10/Materials | Discovered new exit (range 12) 801 | -10/Materials | Lost 5 parts (1p2n2w) 950 | -10/Materials | Repaired Lgt. Treads 1136 | -10/Materials | Discovered new exit (range 8) 1156 | -10/Materials | Entered Subcaves 1168 | -10/Subcaves | Learned Materials emergency access door positions 1340 | -10/Subcaves | Ambushed by Subdweller buried in earth 2092 | -10/Subcaves | Build established: Subdweller-Mutant 2236 | -10/Subcaves | Shifting Twisted Machinery released Sub. Laser 2238 | -10/Subcaves | Core integrity fell below 50% 2239 | -10/Subcaves | Ambushed by Subdweller buried in earth 2242 | -10/Subcaves | Core integrity fell below 20% 2243 | -10/Subcaves | Destroyed by QA-1AR(R) with Subdweller Shrapnel Launcher Last Messages --------------- 01703_ Grenade Launcher destroyed. 01703_ Destroyed Grenade Launcher. 01722_ Destroyed Scrap Shield. 01724_ NT-GMO(R) destroyed. 01731_ The unstable cave ceiling collapses. 01731_ Acquired 8 matter. 01739_ The unstable cave ceiling collapses. 01760_ Acquired 36 matter. 01767_ The unstable cave ceiling collapses. 01802_ Acquired 10 matter. 02024_ Y-45 Defender destroyed. 02030_ Hvy. Assault Rifle fries itself beyond repair. 02032_ Acquired 4 matter. 02037_ Acquired Lgt. Armor Plating. 02225_ M7-7EJ(R) destroyed. 02233_ Acquired 20 matter. Sub. Laser falls loose from the Twisted Machinery. 02237_ Acquired 4 matter. 02239_ Sub. Machine Gun destroyed. 02240_ MX-GHU(R): "ARGHSUB!" Map ----- +----------------------------------------------------+ | ????????????????????????????????????????? ???????? | | ????????????????????????????????????????? ???????? | | ????????????????????????????????????????? ???????? | | ????????????????????????????????????????? ???????? | | ????????????????????????????????????????? #??????? | | ????????????????????????????????????????? ##????## | | ????????????????????????????????###?????# ##???# | | ?????????????????????????????#### ##???# ???## | | ?????????????????????????????? #???# #???# | | ???????????????????????????????? #???# ##?## | | ?????????????????????????????????# ##### ### | | ????????????????????? ???????????# ## | | ????????????????? ???????????# # | | ????????????????# ???????????# ## | | ????????????????# ?????????## ## | | ????????????????#" ?????????# ### # | | ?????????????????" ?????????### #?# ## | | ?????????????????? "?????????# #### # | | ??????????????????? # ??######## ## % | | ????????????????????# ??#"""## # ## | | ????????????????????# ####""" ## ## | | ????????????????????# " ### ### | | ????????????????????# # # ## ## | | ???????????????###### ###### ### | | ?????????????" "" R ##???# ### | | ???????????? " @ #???## ## | | ????????????# " #?### ## ## | | ?????????????# ""; #?# #### #### # | | ?????????????# ######; R #?## ##??## #??### | | ????????????????????# #??####????####????? | | ????????????????????#### # ###??????????????????? | | ???????????????????????######????????????????????? | | ?????????????????????????????????????????????????? | | ?????????????????????????????????????????????????? | | ?????????????????????????????????????????????????? | | ?????????????????????????????????????????????????? | | ?????????????????????????????????????????????????? | | ?????????????????????????????????????????????????? | | ?????????????????????????????????????????????????? | | ?????????????????????????????????????????????????? | | ?????????????????????????????????????????????????? | | ?????????????????????????????????????????????????? | | ?????????????????????????????????????????????????? | | ?????????????????????????????????????????????????? | | ?????????????????????????????????????????????????? | | | | | | | | | | | +----------------------------------------------------+ Best States ------------- Heat Dissipation 47 Energy Generation 14 Energy Capacity 250 Matter Stores 300 Matter Capacity 300 Sight Range 16 Terrain Scan Density 10 Evasion (%) 40 Recoil Reduction 2 Item Schematics ----------------- None Robot Schematics ------------------ None Fabricated ------------ Nothing Alien Tech Used ----------------- None Achievements -------------- None Challenges ------------ None Game ------ Seed MachineMiniCanceller Manual? 0 Play Time 00:11:19 Cumulative 649.4 hours Start 2023.10.05 @ 19:20:47 End 2023.10.05 @ 19:29:34 Sessions 1 Manual Loads 0 Difficulty Rogue Special Mode None Game No. 566 Rogue 351 Adventurer 112 Explorer 103 Win Type - Total 42 Types 26/0/8/3/0/0/4/1/0 Lore% 86 Gallery% 91 Achievement% 82 Wizard Run 0 Options --------- ASCII 0 Keyboard 1 Movement Vi Keybinds 1 Fullscreen 2 Font 32/Terminus Map View 78x57 Tactical HUD 1 Map Filters NONE Filters NONE Steam 1 RUN: 5dfdf3ec-7ad6-4ec7-8cb4-9c8474706e21